[Event "FIDE World School-ch O-11 2025"]
[Site "Vrnjacka Banja"]
[Date "2025.03.25"]
[Round "6.2"]
[White "Uzdemir, Ali Poyraz"]
[Black "Zhauynbay, Alimzhan"]
[Result "0-1"]
[Annotator "TA"]
[ECO "B33"]
[WhiteElo "2184"]
[BlackElo "1927"]
[PlyCount "84"]
[EventDate "2025.03.19"]
[EventType "swiss"]
[EventCountry "SRB"]
[SourceTitle "playchess.com"]
[Source "ChessBase"]
[SourceQuality "1"]
[TimeControl "5400+30"]

{[%evp 23,84,14,3,14,17,0,4,0,33,-93,-99,-97,-89,-100,-104,-106,-51,-46,-52,-49,-50,-42,-40,-44,-38,-181,-182,-169,-163,-276,-277,-264,-265,-293,-236,-302,-312,-454,-381,-444,-444,-595,-575,-597,-586,-787,-776,-1105,-1133,-1038,-1108,-5351,-2574,-29980,-29980,-29983,-29984,-29986,-29987,-29988,-29989,-29989,-29990]} 1. e4 {[%emt 0:00:01]} c5 {[%emt 0:00:11]} 2. Nf3 {[%emt 0:00:03][%cal Bg1f3,Bf3d4,Bd4b5,Bb5a3,Ba3c2][%mdl 32]} Nc6 {[%emt 0:00:10]} 3. d4 {[%emt 0:00:03]} cxd4 {[%emt 0:00:05]} 4. Nxd4 {[%emt 0:00:05]} Nf6 {[%emt 0:00:12]} 5. Nc3 {[%emt 0:00:03]} e5 {[%emt 0:00:19]} 6. Ndb5 {[%emt 0:00:33]} d6 {[%emt 0:00:12]} 7. Bg5 {[%emt 0:00:07]} a6 {[%emt 0:00:09]} 8. Na3 {[%emt 0:04:10]} b5 {[%emt 0:00:06]} 9. Nd5 {[%emt 0:00:04]} Be7 {[%emt 0:00:05]} 10. Bxf6 {[%emt 0:00:03]} Bxf6 {[%emt 0:00:07]} 11. c4 {[%emt 0:00:05]} b4 {[%emt 0:00:10]} 12. Nc2 {[%emt 0:00:03]} a5 {[%emt 0:00:17]} 13. Qf3 {[%emt 0:00:07] B33: Sicilian: Pelikan and Sveshnikov Variations.} Be7 {[%emt 0:02:30] Recently 13...Be6 got a lot of attention.} 14. Rd1 {[%emt 0:01:37][%cal Oc4c5]} O-O {[%emt 0:22:55]} 15. c5 {[%emt 0:00:58] The position is equal.} Be6 {[%emt 0:12:15]} 16. Nxe7+ {[%emt 1:30:28]} (16. Bc4 $14 {stays ahead.}) 16... Qxe7 $146 {[%emt 0:01:48]} (16... Nxe7 17. cxd6 Nc6 18. b3 Qd7 19. Be2 Nd8 20. O-O Nb7 21. Qg3 Nxd6 22. Qxe5 Rfd8 {1-0 Mateus,A (2241)-Ortega,M Valle Region-ch U26 2009 (4.9)}) 17. cxd6 {[%emt 0:00:00]} Qb7 {[%emt 0:03:40][%cal Ob4b3] Black sacrificed a pawn} 18. Qd3 {[%emt 0:00:00]} b3 {[%emt 0:09:46]} 19. axb3 {[%emt 0:00:00]} Bxb3 {[%emt 0:02:02] Black is more active.} (19... Nb4 $1 $17 {[%cal Rb4d3]} 20. Nxb4 Qxb4+ 21. Qc3 Qxe4+ 22. Qe3 Qb4+ (22... Qxe3+ 23. fxe3 Bxb3 24. Rd3 $17) 23. Qc3 Bxb3 (23... Qxb3 24. Qxb3 Bxb3 25. Rd2 $15)) 20. Qb5 $15 {[%emt 0:00:00]} Qxb5 {[%emt 0:03:23]} 21. Bxb5 {[%emt 0:00:00]} Na7 {[%emt 0:04:51]} ({Of course not} 21... Bxc2 22. Bxc6 Ra6 23. Bb7 $11) (21... Nb4 22. Nxb4 axb4 (22... Bxd1 23. Nc6 $14) 23. Rc1 $14) 22. Bd3 {[%emt 0:00:00]} Rad8 {[%emt 0:01:35]} 23. Rd2 {[%emt 0:00:00]} Rxd6 {[%emt 0:01:23] [#]} 24. Ne3 {[%emt 0:00:00] Loses the game.} (24. Be2 $15 Rfd8 25. Rxd6 Rxd6 26. Ne3) 24... Rfd8 $19 {[%emt 0:02:47] Black has strong rooks and is better} 25. Ke2 {[%emt 0:00:00]} Nc6 $36 {[%emt 0:02:23][%mdl 2048] White is under strong pressure.} 26. Rc1 {[%emt 0:00:00] [#]} (26. Nd5 $142) 26... Nb4 $1 {[%emt 0:04:53][%cal Rb4d3]} 27. Rc3 {[%emt 0:00:00]} a4 {[%emt 0:00:33]} 28. g3 {[%emt 0:00:00]} Kf8 {[%emt 0:07:02][%cal Of7f5]} 29. f4 {[%emt 0:00:00]} f6 {[%emt 0:01:36]} 30. fxe5 {[%emt 0:00:00]} (30. Nd5 $142 Bxd5 (30... Nxd5 $2 31. exd5 Rxd5 32. fxe5 $17) 31. fxe5 fxe5 32. exd5 Rxd5 33. Rd1) 30... fxe5 {[%emt 0:00:06]} 31. g4 {[%emt 0:00:00]} g5 {[%emt 0:04:01]} 32. h3 {[%emt 0:00:00]} h6 {[%emt 0:00:09]} 33. Nf5 {[%emt 0:00:48]} Rxd3 {[%emt 0:00:23]} 34. Rdxd3 {[%emt 0:00:11]} Nxd3 {[%emt 0:00:11]} 35. Rc6 {[%emt 0:00:33]} Nxb2 {[%emt 0:01:18]} 36. Rf6+ {[%emt 0:00:39]} Ke8 {[%emt 0:00:07] ...a3 is the strong threat.} 37. Rxh6 {[%emt 0:00:32]} a3 {[%emt 0:00:29] ( -> ...a2)} 38. Rh8+ {[%emt 0:00:02]} Kd7 {[%emt 0:00:05] Black mates.} 39. Rh7+ {[%emt 0:00:06]} Kc6 {[%emt 0:00:14]} 40. Rh6+ {[%emt 0:00:17]} Kc5 {[%emt 0:00:08]} 41. Ne3 {[%emt 0:00:24]} a2 {[%emt 0:00:07]} 42. Ra6 {[%emt 0:00:02]} Na4 {[%emt 0:00:07] Weighted Error Value: White=0.94/Black=0.03 (flawless)   Mistake:       	White=4     	Black=1      Inaccurate:     	White=3     	Black=1      OK:         	White=6     	Black=11     Best:        	White=1     	Black=4      Strong:       	---       	Black=1} 0-1